[Event "Late-Titled-Tuesday-Blitz-March-26-2024"]
[Site "Chess.com"]
[Date "2024.03.26"]
[Round "6"]
[White "Sanyura"]
[Black "AlexPapasimakopoulos"]
[Result "1-0"]
[WhiteElo "2597"]
[BlackElo "2729"]
[TimeControl "180+1"]
[EndTime "15:03:53 PDT"]
[Termination "Sanyura won by checkmate"]

1. e4 {[%clk 0:02:58.7]} 1... e6 {[%clk 0:02:59.9]} 2. d4 {[%clk 0:02:58.6]}
2... d5 {[%clk 0:03:00.8]} 3. Nc3 {[%clk 0:02:58.7]} 3... Bb4 {[%clk 0:03:00.4]}
4. e5 {[%clk 0:02:56.5]} 4... c5 {[%clk 0:03:00.7]} 5. Bd2 {[%clk 0:02:57]} 5...
Ne7 {[%clk 0:03:00]} 6. Nb5 {[%clk 0:02:54.9]} 6... Bxd2+ {[%clk 0:03:00.1]} 7.
Qxd2 {[%clk 0:02:55.8]} 7... O-O {[%clk 0:03:00.3]} 8. f4 {[%clk 0:02:55.9]}
8... cxd4 {[%clk 0:02:59.9]} 9. Nf3 {[%clk 0:02:55.2]} 9... Nbc6 {[%clk
0:03:00.3]} 10. Bd3 {[%clk 0:02:55.3]} 10... f6 {[%clk 0:03:00.1]} 11. exf6
{[%clk 0:02:54.2]} 11... Rxf6 {[%clk 0:03:01]} 12. Nbxd4 {[%clk 0:02:53.5]}
12... Qd6 {[%clk 0:03:00.7]} 13. O-O {[%clk 0:02:22.6]} 13... Bd7 {[%clk
0:02:51.8]} 14. Ng5 {[%clk 0:01:55.7]} 14... h6 {[%clk 0:02:44.9]} 15. Bh7+
{[%clk 0:01:44.4]} 15... Kh8 {[%clk 0:02:38.2]} 16. Nxc6 {[%clk 0:01:26.3]}
16... bxc6 {[%clk 0:02:30.5]} 17. Qd3 {[%clk 0:01:16.6]} 17... Raf8 {[%clk
0:02:25.1]} 18. Bg8 {[%clk 0:00:54]} 18... hxg5 {[%clk 0:02:13.2]} 19. Qh7#
{[%clk 0:00:53]} 1-0

[Event "Late-Titled-Tuesday-Blitz-March-26-2024"]
[Site "Chess.com"]
[Date "2024.03.26"]
[Round "6"]
[White "Chesstiger64"]
[Black "banane_verte"]
[Result "1/2-1/2"]
[WhiteElo "2406"]
[BlackElo "2528"]
[TimeControl "180+1"]
[EndTime "15:04:01 PDT"]
[Termination "Game drawn by repetition"]

1. d4 {[%clk 0:03:00.9]} 1... d5 {[%clk 0:02:59.3]} 2. Nf3 {[%clk 0:03:01.3]}
2... Nf6 {[%clk 0:02:59.3]} 3. e3 {[%clk 0:03:01.6]} 3... c5 {[%clk 0:02:57.6]}
4. c3 {[%clk 0:03:01]} 4... Nc6 {[%clk 0:02:57.1]} 5. a3 {[%clk 0:03:00.8]} 5...
Bg4 {[%clk 0:02:55.9]} 6. h3 {[%clk 0:02:57.5]} 6... Bxf3 {[%clk 0:02:53.1]} 7.
Qxf3 {[%clk 0:02:57.4]} 7... e5 {[%clk 0:02:54]} 8. dxe5 {[%clk 0:02:57]} 8...
Nxe5 {[%clk 0:02:54.9]} 9. Bb5+ {[%clk 0:02:56.8]} 9... Nc6 {[%clk 0:02:51]} 10.
Nd2 {[%clk 0:02:56.9]} 10... Qb6 {[%clk 0:02:49.4]} 11. Bxc6+ {[%clk 0:02:48.1]}
11... Qxc6 {[%clk 0:02:49.5]} 12. c4 {[%clk 0:02:47.2]} 12... Be7 {[%clk
0:02:45.6]} 13. b3 {[%clk 0:02:46.8]} 13... O-O {[%clk 0:02:42.9]} 14. Bb2
{[%clk 0:02:47.3]} 14... Rad8 {[%clk 0:02:41.6]} 15. O-O {[%clk 0:02:41.7]}
15... Ne4 {[%clk 0:02:35.3]} 16. Nxe4 {[%clk 0:02:33.3]} 16... dxe4 {[%clk
0:02:36.2]} 17. Qg4 {[%clk 0:02:33.7]} 17... Bf6 {[%clk 0:02:32.7]} 18. Bxf6
{[%clk 0:02:32.4]} 18... Qxf6 {[%clk 0:02:33.6]} 19. Qxe4 {[%clk 0:02:32.5]}
19... Qb6 {[%clk 0:02:31.2]} 20. b4 {[%clk 0:02:28.6]} 20... cxb4 {[%clk
0:02:27.3]} 21. axb4 {[%clk 0:02:28.8]} 21... Qxb4 {[%clk 0:02:28.2]} 22. Rab1
{[%clk 0:02:27.8]} 22... Qc5 {[%clk 0:02:25.2]} 23. Rxb7 {[%clk 0:02:27.2]}
23... a5 {[%clk 0:02:23.5]} 24. Rb5 {[%clk 0:02:24.6]} 24... Qa3 {[%clk
0:02:23.5]} 25. Rb7 {[%clk 0:02:20]} 25... Ra8 {[%clk 0:02:22.1]} 26. Rd1 {[%clk
0:02:12.1]} 26... a4 {[%clk 0:02:17.2]} 27. Rdd7 {[%clk 0:02:11.8]} 27... Qa1+
{[%clk 0:02:13.5]} 28. Kh2 {[%clk 0:02:11.2]} 28... Qf6 {[%clk 0:02:14.4]} 29.
Rxf7 {[%clk 0:01:51.3]} 29... Qxf7 {[%clk 0:02:15.3]} 30. Rxf7 {[%clk
0:01:50.4]} 30... Kxf7 {[%clk 0:02:16.2]} 31. Qd5+ {[%clk 0:01:49.8]} 31... Ke7
{[%clk 0:02:14.4]} 32. Qe5+ {[%clk 0:01:50]} 32... Kf7 {[%clk 0:02:14.1]} 33.
Qd5+ {[%clk 0:01:49.9]} 33... Kf6 {[%clk 0:02:11.4]} 34. Qd6+ {[%clk 0:01:47.2]}
34... Kf7 {[%clk 0:01:46.6]} 35. Qd5+ {[%clk 0:01:46.9]} 1/2-1/2

[Event "Late-Titled-Tuesday-Blitz-March-26-2024"]
[Site "Chess.com"]
[Date "2024.03.26"]
[Round "6"]
[White "Rud_Makarian"]
[Black "eljanov"]
[Result "0-1"]
[WhiteElo "3092"]
[BlackElo "2915"]
[TimeControl "180+1"]
[EndTime "15:04:02 PDT"]
[Termination "eljanov won by resignation"]

1. c4 {[%clk 0:03:00.9]} 1... Nf6 {[%clk 0:02:58.9]} 2. Nc3 {[%clk 0:03:01.4]}
2... e5 {[%clk 0:02:59.4]} 3. Nf3 {[%clk 0:03:01.7]} 3... Nc6 {[%clk 0:02:59.2]}
4. e3 {[%clk 0:03:02]} 4... Bb4 {[%clk 0:02:58]} 5. Qc2 {[%clk 0:03:02.4]} 5...
Bxc3 {[%clk 0:02:58.1]} 6. Qxc3 {[%clk 0:03:03.3]} 6... Qe7 {[%clk 0:02:58.5]}
7. a3 {[%clk 0:03:02.8]} 7... O-O {[%clk 0:02:55.5]} 8. b4 {[%clk 0:03:03]} 8...
d5 {[%clk 0:02:52.3]} 9. cxd5 {[%clk 0:03:03.9]} 9... Nxd5 {[%clk 0:02:52.3]}
10. Qb3 {[%clk 0:03:02.6]} 10... Rd8 {[%clk 0:02:49.4]} 11. Bb2 {[%clk
0:03:01.1]} 11... Bg4 {[%clk 0:02:38.5]} 12. d3 {[%clk 0:02:52.4]} 12... Bxf3
{[%clk 0:02:09.4]} 13. gxf3 {[%clk 0:02:53.3]} 13... a6 {[%clk 0:02:07.2]} 14.
Qc4 {[%clk 0:02:42.2]} 14... Rd6 {[%clk 0:02:01.4]} 15. Rg1 {[%clk 0:02:39.4]}
15... Rad8 {[%clk 0:01:57.7]} 16. h4 {[%clk 0:02:27.1]} 16... Nd4 {[%clk
0:01:42.1]} 17. exd4 {[%clk 0:02:12.6]} 17... Rc6 {[%clk 0:01:42.2]} 18. Qb3
{[%clk 0:01:52.5]} 18... exd4+ {[%clk 0:01:42.5]} 19. Kd2 {[%clk 0:01:52.8]}
19... Qxh4 {[%clk 0:01:41.7]} 20. Re1 {[%clk 0:01:30.1]} 20... Qxf2+ {[%clk
0:01:41]} 21. Re2 {[%clk 0:01:30.5]} 21... Qxg1 {[%clk 0:01:40]} 22. Qxd5 {[%clk
0:01:30.3]} 22... Qe3+ {[%clk 0:01:39.3]} 0-1

[Event "Late-Titled-Tuesday-Blitz-March-26-2024"]
[Site "Chess.com"]
[Date "2024.03.26"]
[Round "6"]
[White "ValeriyGrinev"]
[Black "Brahianzevich"]
[Result "0-1"]
[WhiteElo "2604"]
[BlackElo "2496"]
[TimeControl "180+1"]
[EndTime "15:04:07 PDT"]
[Termination "Brahianzevich won by resignation"]

1. e4 {[%clk 0:02:56.1]} 1... c5 {[%clk 0:03:00.1]} 2. Nc3 {[%clk 0:02:55.1]}
2... g6 {[%clk 0:02:59.8]} 3. g3 {[%clk 0:02:55.8]} 3... Bg7 {[%clk 0:02:58.9]}
4. Bg2 {[%clk 0:02:56.7]} 4... Nc6 {[%clk 0:02:56.6]} 5. d3 {[%clk 0:02:57]}
5... Rb8 {[%clk 0:02:56.6]} 6. Nge2 {[%clk 0:02:57.7]} 6... b5 {[%clk
0:02:54.4]} 7. a3 {[%clk 0:02:57.7]} 7... a5 {[%clk 0:02:53.7]} 8. O-O {[%clk
0:02:56.8]} 8... d6 {[%clk 0:02:53.6]} 9. f4 {[%clk 0:02:55.3]} 9... e6 {[%clk
0:02:53.9]} 10. Be3 {[%clk 0:02:46.8]} 10... b4 {[%clk 0:02:50.8]} 11. axb4
{[%clk 0:02:46.5]} 11... axb4 {[%clk 0:02:50.9]} 12. Na4 {[%clk 0:02:46.6]}
12... Nge7 {[%clk 0:02:48.8]} 13. e5 {[%clk 0:02:46.6]} 13... dxe5 {[%clk
0:02:46.5]} 14. Bxc5 {[%clk 0:02:44.3]} 14... exf4 {[%clk 0:02:45.3]} 15. Nxf4
{[%clk 0:02:43.1]} 15... O-O {[%clk 0:02:45]} 16. c3 {[%clk 0:02:40.7]} 16...
bxc3 {[%clk 0:02:39.6]} 17. bxc3 {[%clk 0:02:41.6]} 17... Re8 {[%clk 0:02:37]}
18. d4 {[%clk 0:02:38.5]} 18... Ba6 {[%clk 0:02:35.1]} 19. Re1 {[%clk
0:02:37.7]} 19... Bb5 {[%clk 0:02:34.8]} 20. Qg4 {[%clk 0:02:32.6]} 20... h5
{[%clk 0:02:29.5]} 21. Qh3 {[%clk 0:02:32.1]} 21... Nf5 {[%clk 0:02:26.5]} 22.
g4 {[%clk 0:02:28.1]} 22... hxg4 {[%clk 0:02:25]} 23. Qxg4 {[%clk 0:02:27.8]}
23... Na5 {[%clk 0:02:23.7]} 24. Nb6 {[%clk 0:02:20.1]} 24... Nb3 {[%clk
0:02:20.8]} 25. Ra8 {[%clk 0:02:09.5]} 25... Rxa8 {[%clk 0:02:07.6]} 26. Bxa8
{[%clk 0:02:02.6]} 26... Nxc5 {[%clk 0:02:05.7]} 27. dxc5 {[%clk 0:02:03.5]}
27... Qc7 {[%clk 0:01:58.4]} 28. Nxg6 {[%clk 0:01:51.4]} 28... Qxc5+ {[%clk
0:01:53]} 29. Kg2 {[%clk 0:01:50.5]} 29... Bc6+ {[%clk 0:01:50]} 30. Bxc6 {[%clk
0:01:49.4]} 30... Qxc6+ {[%clk 0:01:50.9]} 31. Kh3 {[%clk 0:01:49.8]} 31...
Qxc3+ {[%clk 0:01:46.4]} 32. Qg3 {[%clk 0:01:48.1]} 32... Nxg3 {[%clk
0:01:45.3]} 33. Re3 {[%clk 0:01:47.1]} 33... Qxe3 {[%clk 0:01:44.7]} 0-1

[Event "Late-Titled-Tuesday-Blitz-March-26-2024"]
[Site "Chess.com"]
[Date "2024.03.26"]
[Round "6"]
[White "Blackwhite017"]
[Black "Viktor_Poddubnyi"]
[Result "0-1"]
[WhiteElo "2091"]
[BlackElo "2307"]
[TimeControl "180+1"]
[EndTime "15:04:08 PDT"]
[Termination "Viktor_Poddubnyi won by resignation"]

1. e4 {[%clk 0:03:00.3]} 1... g6 {[%clk 0:03:00]} 2. d4 {[%clk 0:02:59.9]} 2...
Bg7 {[%clk 0:03:00.4]} 3. Bc4 {[%clk 0:02:59.8]} 3... e6 {[%clk 0:03:00.1]} 4.
e5 {[%clk 0:02:54]} 4... d6 {[%clk 0:02:27.4]} 5. Qe2 {[%clk 0:02:50.4]} 5...
Nc6 {[%clk 0:02:04.4]} 6. Nf3 {[%clk 0:01:56.1]} 6... dxe5 {[%clk 0:02:03.3]} 7.
dxe5 {[%clk 0:01:44.1]} 7... Nd4 {[%clk 0:02:02]} 8. Nxd4 {[%clk 0:01:43]} 8...
Qxd4 {[%clk 0:02:02.9]} 9. f4 {[%clk 0:01:10.1]} 9... Ne7 {[%clk 0:01:39.8]} 10.
Be3 {[%clk 0:01:09]} 10... Qxb2 {[%clk 0:01:37.9]} 11. Nd2 {[%clk 0:01:08.2]}
11... Qxa1+ {[%clk 0:01:36.6]} 0-1

[Event "Late-Titled-Tuesday-Blitz-March-26-2024"]
[Site "Chess.com"]
[Date "2024.03.26"]
[Round "6"]
[White "Mazetovic"]
[Black "Budisavljevic"]
[Result "1-0"]
[WhiteElo "2621"]
[BlackElo "2770"]
[TimeControl "180+1"]
[EndTime "15:04:18 PDT"]
[Termination "Mazetovic won by resignation"]

1. e4 {[%clk 0:03:00.9]} 1... e6 {[%clk 0:02:59.1]} 2. d3 {[%clk 0:02:57]} 2...
c5 {[%clk 0:02:58.6]} 3. Nf3 {[%clk 0:02:56.3]} 3... d5 {[%clk 0:02:57.9]} 4.
Nbd2 {[%clk 0:02:56.6]} 4... Nf6 {[%clk 0:02:57.6]} 5. g3 {[%clk 0:02:56.3]}
5... Be7 {[%clk 0:02:58.1]} 6. Bg2 {[%clk 0:02:56.4]} 6... O-O {[%clk
0:02:58.7]} 7. O-O {[%clk 0:02:57]} 7... Nc6 {[%clk 0:02:59]} 8. Re1 {[%clk
0:02:57.4]} 8... b5 {[%clk 0:02:59.3]} 9. e5 {[%clk 0:02:56.2]} 9... Nd7 {[%clk
0:02:58]} 10. Nf1 {[%clk 0:02:56.5]} 10... a5 {[%clk 0:02:57.5]} 11. Bf4 {[%clk
0:02:56.6]} 11... a4 {[%clk 0:02:57]} 12. a3 {[%clk 0:02:55.8]} 12... b4 {[%clk
0:02:56.9]} 13. h4 {[%clk 0:02:56]} 13... bxa3 {[%clk 0:02:55.5]} 14. bxa3
{[%clk 0:02:55.9]} 14... Rb8 {[%clk 0:02:52.3]} 15. N1h2 {[%clk 0:02:55.6]}
15... Re8 {[%clk 0:02:46.5]} 16. c4 {[%clk 0:02:46.5]} 16... Nb6 {[%clk
0:02:39.6]} 17. Ng5 {[%clk 0:02:41.9]} 17... h6 {[%clk 0:02:15.6]} 18. Qh5
{[%clk 0:02:33.5]} 18... hxg5 {[%clk 0:02:07.1]} 19. hxg5 {[%clk 0:02:32.7]}
19... Nd4 {[%clk 0:02:02.5]} 20. Ng4 {[%clk 0:02:32.5]} 20... Nf5 {[%clk
0:01:59.5]} 21. Nf6+ {[%clk 0:02:23.7]} 21... gxf6 {[%clk 0:01:56.3]} 22. gxf6
{[%clk 0:02:22]} 22... Rb7 {[%clk 0:01:44.2]} 23. Bh3 {[%clk 0:02:02.5]} 23...
Bxf6 {[%clk 0:01:15.2]} 24. exf6 {[%clk 0:02:01.9]} 1-0

[Event "Late-Titled-Tuesday-Blitz-March-26-2024"]
[Site "Chess.com"]
[Date "2024.03.26"]
[Round "6"]
[White "giomar27"]
[Black "Bala-Afiada"]
[Result "1-0"]
[WhiteElo "2443"]
[BlackElo "1875"]
[TimeControl "180+1"]
[EndTime "15:04:52 PDT"]
[Termination "giomar27 won on time"]

1. Nc3 {[%clk 0:03:00.9]} 1... d5 {[%clk 0:02:53]} 2. d4 {[%clk 0:02:57]} 2...
Nf6 {[%clk 0:02:53]} 3. Bf4 {[%clk 0:02:56.9]} 3... c5 {[%clk 0:02:53.1]} 4. e4
{[%clk 0:02:56.6]} 4... cxd4 {[%clk 0:02:19]} 5. Qxd4 {[%clk 0:02:54.6]} 5...
Nc6 {[%clk 0:02:17.1]} 6. Bb5 {[%clk 0:02:54.6]} 6... Bd7 {[%clk 0:02:17.1]} 7.
Bxc6 {[%clk 0:02:54.6]} 7... bxc6 {[%clk 0:02:15.1]} 8. e5 {[%clk 0:02:52.8]}
8... Nh5 {[%clk 0:02:05.3]} 9. Be3 {[%clk 0:02:52.7]} 9... Qb6 {[%clk
0:01:46.4]} 10. Qd2 {[%clk 0:02:46.1]} 10... Qxb2 {[%clk 0:01:32.5]} 11. Rb1
{[%clk 0:02:46.2]} 11... Qa3 {[%clk 0:01:31.5]} 12. Nf3 {[%clk 0:02:45.8]} 12...
e6 {[%clk 0:01:21.8]} 13. O-O {[%clk 0:02:45.7]} 13... Bb4 {[%clk 0:01:17.4]}
14. Rb3 {[%clk 0:02:44.9]} 14... Qa5 {[%clk 0:01:14.1]} 15. Rfb1 {[%clk
0:02:43.8]} 15... Bxc3 {[%clk 0:01:08.3]} 16. Rxc3 {[%clk 0:02:43.7]} 16... O-O
{[%clk 0:00:59.4]} 17. Qd4 {[%clk 0:02:42.8]} 17... Qxa2 {[%clk 0:00:49.4]} 18.
Rcb3 {[%clk 0:02:41.6]} 18... Qxc2 {[%clk 0:00:47.4]} 19. Qg4 {[%clk 0:02:41.7]}
19... Qg6 {[%clk 0:00:43.2]} 20. Qh4 {[%clk 0:02:35.4]} 20... f5 {[%clk
0:00:32.7]} 21. Bc5 {[%clk 0:02:27.5]} 21... Rf7 {[%clk 0:00:26.8]} 22. Nd4
{[%clk 0:02:27.3]} 22... Qg4 {[%clk 0:00:21.1]} 23. Rb8+ {[%clk 0:02:26.5]}
23... Be8 {[%clk 0:00:10.1]} 24. Qxg4 {[%clk 0:02:22.2]} 24... fxg4 {[%clk
0:00:10.3]} 25. Rxa8 {[%clk 0:02:22.4]} 1-0

[Event "Late-Titled-Tuesday-Blitz-March-26-2024"]
[Site "Chess.com"]
[Date "2024.03.26"]
[Round "6"]
[White "Njal28"]
[Black "vladislavkovalev"]
[Result "0-1"]
[WhiteElo "3024"]
[BlackElo "2886"]
[TimeControl "180+1"]
[EndTime "15:04:58 PDT"]
[Termination "vladislavkovalev won by resignation"]

1. d4 {[%clk 0:03:00.9]} 1... Nf6 {[%clk 0:03:00]} 2. c4 {[%clk 0:03:01.1]} 2...
e6 {[%clk 0:03:00.5]} 3. Nc3 {[%clk 0:03:01.8]} 3... Bb4 {[%clk 0:03:00.4]} 4.
e3 {[%clk 0:03:02.5]} 4... O-O {[%clk 0:02:59.8]} 5. a3 {[%clk 0:03:03.2]} 5...
Bxc3+ {[%clk 0:02:59.9]} 6. bxc3 {[%clk 0:03:04.1]} 6... b6 {[%clk 0:02:55.1]}
7. Bd3 {[%clk 0:03:03.8]} 7... c5 {[%clk 0:02:51.9]} 8. Ne2 {[%clk 0:03:00.8]}
8... Nc6 {[%clk 0:02:50.7]} 9. e4 {[%clk 0:02:55.5]} 9... d6 {[%clk 0:02:50.9]}
10. Bg5 {[%clk 0:02:51.9]} 10... e5 {[%clk 0:02:44.1]} 11. d5 {[%clk 0:02:51.3]}
11... Na5 {[%clk 0:02:44]} 12. O-O {[%clk 0:02:46.4]} 12... h6 {[%clk
0:02:42.7]} 13. Bh4 {[%clk 0:02:39.5]} 13... g5 {[%clk 0:02:42]} 14. Bg3 {[%clk
0:02:39.4]} 14... Nh5 {[%clk 0:02:42.7]} 15. Nc1 {[%clk 0:02:07]} 15... Nf4
{[%clk 0:02:37.8]} 16. Bxf4 {[%clk 0:02:00.3]} 16... gxf4 {[%clk 0:02:20.2]} 17.
Qh5 {[%clk 0:01:58.4]} 17... Qg5 {[%clk 0:02:16]} 18. Qe2 {[%clk 0:01:48.9]}
18... Bg4 {[%clk 0:02:04.1]} 19. f3 {[%clk 0:01:48.1]} 19... Bd7 {[%clk
0:02:04.8]} 20. Kh1 {[%clk 0:01:46.6]} 20... Kh8 {[%clk 0:02:03.3]} 21. Qe1
{[%clk 0:01:45.9]} 21... Rg8 {[%clk 0:02:02]} 22. Ra2 {[%clk 0:01:46.8]} 22...
Qh5 {[%clk 0:01:52.8]} 23. Rg1 {[%clk 0:01:39.9]} 23... Rg3 {[%clk 0:01:41.8]}
24. Ne2 {[%clk 0:01:39.7]} 24... Rag8 {[%clk 0:01:42.1]} 25. Qf1 {[%clk
0:01:07.5]} 25... R3g5 {[%clk 0:01:26]} 26. g4 {[%clk 0:01:04]} 26... fxg3
{[%clk 0:01:23.3]} 27. Rxg3 {[%clk 0:01:00.5]} 27... Rxg3 {[%clk 0:01:22.4]} 28.
Nxg3 {[%clk 0:01:01.3]} 28... Rxg3 {[%clk 0:01:22.8]} 0-1

[Event "Late-Titled-Tuesday-Blitz-March-26-2024"]
[Site "Chess.com"]
[Date "2024.03.26"]
[Round "6"]
[White "santosalberto1987"]
[Black "cthake"]
[Result "1-0"]
[WhiteElo "2515"]
[BlackElo "1775"]
[TimeControl "180+1"]
[EndTime "15:05:11 PDT"]
[Termination "santosalberto1987 won by resignation"]

1. e4 {[%clk 0:02:56.3]} 1... e6 {[%clk 0:02:59.8]} 2. d4 {[%clk 0:02:54.2]}
2... d5 {[%clk 0:02:59.3]} 3. Nc3 {[%clk 0:02:52.6]} 3... Bb4 {[%clk 0:02:58.4]}
4. e5 {[%clk 0:02:45.5]} 4... b6 {[%clk 0:02:58.3]} 5. Qg4 {[%clk 0:02:39.8]}
5... Bf8 {[%clk 0:02:57.3]} 6. h4 {[%clk 0:02:36.2]} 6... Ba6 {[%clk 0:02:56.1]}
7. Bxa6 {[%clk 0:02:32.1]} 7... Nxa6 {[%clk 0:02:56]} 8. a3 {[%clk 0:02:32.2]}
8... Qd7 {[%clk 0:02:49.9]} 9. Nf3 {[%clk 0:02:31]} 9... h5 {[%clk 0:02:38.9]}
10. Qg3 {[%clk 0:02:24.8]} 10... O-O-O {[%clk 0:02:34.2]} 11. Bg5 {[%clk
0:02:23.7]} 11... f6 {[%clk 0:02:31.9]} 12. Bf4 {[%clk 0:02:23.4]} 12... Ne7
{[%clk 0:02:15.9]} 13. O-O-O {[%clk 0:02:21.3]} 13... Nf5 {[%clk 0:02:15.6]} 14.
Qg6 {[%clk 0:02:20.1]} 14... Ne7 {[%clk 0:02:13.2]} 15. Qf7 {[%clk 0:02:19.2]}
15... Nf5 {[%clk 0:02:05]} 16. Qxd7+ {[%clk 0:02:15.3]} 16... Rxd7 {[%clk
0:02:02.4]} 17. Rhe1 {[%clk 0:02:13.6]} 17... Nxh4 {[%clk 0:01:36.1]} 18. Nxh4
{[%clk 0:02:08.1]} 18... g5 {[%clk 0:01:36.1]} 19. Ng6 {[%clk 0:02:06.6]} 19...
Rg8 {[%clk 0:01:34.2]} 20. Nxf8 {[%clk 0:02:06.4]} 20... Rxf8 {[%clk 0:01:34.5]}
21. Be3 {[%clk 0:02:05.1]} 21... fxe5 {[%clk 0:01:32.2]} 22. dxe5 {[%clk
0:02:04.8]} 22... g4 {[%clk 0:01:30.1]} 23. Nb5 {[%clk 0:02:02.4]} 23... Rf5
{[%clk 0:01:25.4]} 24. Bd2 {[%clk 0:01:41.5]} 24... Kb7 {[%clk 0:01:23.1]} 25.
Nd4 {[%clk 0:01:39.5]} 25... Rxf2 {[%clk 0:01:20.9]} 26. Nxe6 {[%clk 0:01:36.2]}
26... Rxg2 {[%clk 0:01:20.6]} 27. Bg5 {[%clk 0:01:30.9]} 27... Nb8 {[%clk
0:01:12.3]} 28. Nf4 {[%clk 0:01:27.9]} 28... Rf2 {[%clk 0:01:08.3]} 29. e6
{[%clk 0:01:27.6]} 29... Rg7 {[%clk 0:01:03.7]} 30. e7 {[%clk 0:01:26.6]} 1-0

[Event "Late-Titled-Tuesday-Blitz-March-26-2024"]
[Site "Chess.com"]
[Date "2024.03.26"]
[Round "6"]
[White "Dontmesswithme_2"]
[Black "IriBu"]
[Result "0-1"]
[WhiteElo "2414"]
[BlackElo "2573"]
[TimeControl "180+1"]
[EndTime "15:05:20 PDT"]
[Termination "IriBu won by resignation"]

1. e4 {[%clk 0:03:00.9]} 1... d6 {[%clk 0:02:59]} 2. d4 {[%clk 0:03:00.1]} 2...
Nf6 {[%clk 0:02:59.2]} 3. Nc3 {[%clk 0:03:00.5]} 3... e5 {[%clk 0:02:58.9]} 4.
Nf3 {[%clk 0:02:55.5]} 4... Nbd7 {[%clk 0:02:59.1]} 5. Bc4 {[%clk 0:02:54.9]}
5... Be7 {[%clk 0:02:59.5]} 6. O-O {[%clk 0:02:53.9]} 6... c6 {[%clk 0:02:59.9]}
7. a4 {[%clk 0:02:52.6]} 7... Qc7 {[%clk 0:02:58.9]} 8. Re1 {[%clk 0:02:46.5]}
8... h6 {[%clk 0:02:59.2]} 9. a5 {[%clk 0:02:41.6]} 9... Nf8 {[%clk 0:02:58.9]}
10. b3 {[%clk 0:02:28]} 10... Ng6 {[%clk 0:02:58.5]} 11. Bb2 {[%clk 0:02:27]}
11... Bg4 {[%clk 0:02:57]} 12. dxe5 {[%clk 0:02:22]} 12... dxe5 {[%clk
0:02:54.7]} 13. h3 {[%clk 0:02:19.9]} 13... Bd7 {[%clk 0:02:49.7]} 14. Qc1
{[%clk 0:01:53.2]} 14... O-O {[%clk 0:02:46.6]} 15. Qe3 {[%clk 0:01:52.8]} 15...
Nh5 {[%clk 0:02:43]} 16. Ne2 {[%clk 0:01:32.6]} 16... Bf6 {[%clk 0:02:37.6]} 17.
Red1 {[%clk 0:01:25.7]} 17... Nhf4 {[%clk 0:02:36]} 18. Kh2 {[%clk 0:00:59.6]}
18... b5 {[%clk 0:02:25.7]} 19. axb6 {[%clk 0:00:58.4]} 19... axb6 {[%clk
0:02:26.6]} 20. Neg1 {[%clk 0:00:57]} 20... b5 {[%clk 0:02:23.2]} 21. Bf1 {[%clk
0:00:56.1]} 21... c5 {[%clk 0:02:20.9]} 22. g3 {[%clk 0:00:35.2]} 22... Ne6
{[%clk 0:02:21]} 23. h4 {[%clk 0:00:30.4]} 23... Nd4 {[%clk 0:02:19.2]} 24. Bd3
{[%clk 0:00:10.4]} 24... Bc6 {[%clk 0:02:10.7]} 25. h5 {[%clk 0:00:07.8]} 25...
Ne7 {[%clk 0:02:10.4]} 26. Rab1 {[%clk 0:00:04.3]} 26... b4 {[%clk 0:02:01.4]}
27. Nd2 {[%clk 0:00:03.9]} 27... Bg5 {[%clk 0:01:58]} 28. f4 {[%clk 0:00:03.3]}
28... exf4 {[%clk 0:01:57.6]} 0-1

[Event "Late-Titled-Tuesday-Blitz-March-26-2024"]
[Site "Chess.com"]
[Date "2024.03.26"]
[Round "6"]
[White "Durarbayli"]
[Black "Binary010"]
[Result "1-0"]
[WhiteElo "2934"]
[BlackElo "2782"]
[TimeControl "180+1"]
[EndTime "15:05:43 PDT"]
[Termination "Durarbayli won by resignation"]

1. e4 {[%clk 0:03:00.9]} 1... e5 {[%clk 0:03:00.2]} 2. Nf3 {[%clk 0:02:58.8]}
2... Nf6 {[%clk 0:03:00.6]} 3. d4 {[%clk 0:02:58.5]} 3... Nxe4 {[%clk
0:03:00.5]} 4. dxe5 {[%clk 0:02:58.9]} 4... d5 {[%clk 0:03:00.3]} 5. Bd3 {[%clk
0:02:58.3]} 5... Nc6 {[%clk 0:02:57.6]} 6. O-O {[%clk 0:02:56.7]} 6... Bg4
{[%clk 0:02:57.2]} 7. Bf4 {[%clk 0:02:38]} 7... Bc5 {[%clk 0:02:46.9]} 8. Nc3
{[%clk 0:02:29.9]} 8... Nxc3 {[%clk 0:02:42.6]} 9. bxc3 {[%clk 0:02:30.8]} 9...
Qd7 {[%clk 0:02:42.2]} 10. Rb1 {[%clk 0:02:23.9]} 10... O-O-O {[%clk 0:02:40]}
11. h3 {[%clk 0:02:11.6]} 11... Bh5 {[%clk 0:02:38.6]} 12. Rb5 {[%clk
0:02:00.2]} 12... Bb6 {[%clk 0:02:37.4]} 13. a4 {[%clk 0:02:00]} 13... Rhe8
{[%clk 0:02:26.6]} 14. Re1 {[%clk 0:01:59.2]} 14... Ba5 {[%clk 0:02:14.4]} 15.
Qb1 {[%clk 0:01:15.3]} 15... Bxf3 {[%clk 0:00:38.9]} 16. Rxb7 {[%clk 0:01:12.7]}
16... Qe6 {[%clk 0:00:38.7]} 17. Ba6 {[%clk 0:00:58.6]} 17... Kd7 {[%clk
0:00:39]} 18. gxf3 {[%clk 0:00:56.3]} 18... Bxc3 {[%clk 0:00:24.9]} 19. Rxc7+
{[%clk 0:00:53.6]} 1-0

[Event "Late-Titled-Tuesday-Blitz-March-26-2024"]
[Site "Chess.com"]
[Date "2024.03.26"]
[Round "6"]
[White "ArchibaldCerveza29"]
[Black "Slovineanu"]
[Result "0-1"]
[WhiteElo "2370"]
[BlackElo "2511"]
[TimeControl "180+1"]
[EndTime "15:05:43 PDT"]
[Termination "Slovineanu won by resignation"]

1. e4 {[%clk 0:03:00.9]} 1... e5 {[%clk 0:03:00]} 2. Nf3 {[%clk 0:03:00.7]} 2...
Nc6 {[%clk 0:03:00.2]} 3. Bb5 {[%clk 0:03:01.1]} 3... a6 {[%clk 0:03:00.3]} 4.
Ba4 {[%clk 0:03:01.3]} 4... Bc5 {[%clk 0:02:58.3]} 5. c3 {[%clk 0:02:55.4]} 5...
Nge7 {[%clk 0:02:57.5]} 6. O-O {[%clk 0:02:54.1]} 6... Ba7 {[%clk 0:02:56.4]} 7.
d4 {[%clk 0:02:53.5]} 7... Ng6 {[%clk 0:02:56.3]} 8. Bg5 {[%clk 0:02:49.2]} 8...
f6 {[%clk 0:02:56.1]} 9. Be3 {[%clk 0:02:48.3]} 9... O-O {[%clk 0:02:55.8]} 10.
h4 {[%clk 0:02:41.7]} 10... d6 {[%clk 0:02:53.4]} 11. Nbd2 {[%clk 0:02:37.4]}
11... Kh8 {[%clk 0:02:50.1]} 12. d5 {[%clk 0:02:16.7]} 12... Nb8 {[%clk
0:02:25.7]} 13. Bxa7 {[%clk 0:02:15.3]} 13... Rxa7 {[%clk 0:02:25.8]} 14. Qe1
{[%clk 0:01:29.8]} 14... f5 {[%clk 0:02:16.4]} 15. exf5 {[%clk 0:01:11.6]} 15...
Bxf5 {[%clk 0:02:14]} 16. Qe3 {[%clk 0:01:03]} 16... b6 {[%clk 0:02:13.3]} 17.
Qg5 {[%clk 0:00:44.4]} 17... Nd7 {[%clk 0:01:36.8]} 18. Bxd7 {[%clk 0:00:43.2]}
18... Qxd7 {[%clk 0:01:28.4]} 19. Nc4 {[%clk 0:00:36]} 19... h6 {[%clk
0:01:20.2]} 20. Qg3 {[%clk 0:00:32.6]} 20... Nf4 {[%clk 0:01:17.2]} 21. Ncxe5
{[%clk 0:00:19.6]} 21... dxe5 {[%clk 0:01:14.1]} 22. Nxe5 {[%clk 0:00:19.9]}
22... Ne2+ {[%clk 0:01:13.3]} 23. Kh2 {[%clk 0:00:20]} 23... Nxg3 {[%clk
0:01:13.5]} 24. Nxd7 {[%clk 0:00:20.8]} 24... Nxf1+ {[%clk 0:01:13.9]} 25. Rxf1
{[%clk 0:00:19.7]} 25... Bxd7 {[%clk 0:01:14.1]} 0-1